bitfinex-derivatives/quotes_BTCF0:USTF0_20250609
["timestamp","ask_amount","ask_price","bid_price","bid_amount"]
[1749437443312,1.53497241,105580.0,105570.0,0.44933455]
[1749437443513,1.53497241,105580.0,105570.0,0.43507501]
[1749437443712,1.53497241,105580.0,105570.0,0.44931185]
[1749437443911,1.53497241,105580.0,105570.0,0.43507501]
[1749437444116,1.53497241,105580.0,105570.0,0.44931186]
[1749437444612,1.53497241,105580.0,105570.0,0.43507501]
[1749437444812,1.53497241,105580.0,105570.0,0.44931186]
[1749437445715,1.53497241,105580.0,105570.0,0.43507501]
[1749437446414,1.53497241,105580.0,105570.0,0.40577963]
[1749437447918,1.17417241,105580.0,105570.0,0.40577963]
[1749437448117,1.53497241,105580.0,105570.0,0.40577963]
[1749437452018,1.74384682,105580.0,105570.0,0.40577963]
[1749437452218,1.78248283,105580.0,105570.0,0.34227963]
[1749437452420,1.74384682,105580.0,105570.0,0.27035771]
[1749437452623,1.74384682,105580.0,105570.0,0.1227365]
[1749437452919,1.74384682,105580.0,105570.0,0.1186799]
[1749437453426,1.74384682,105580.0,105570.0,0.3080354]
[1749437453728,1.74384682,105580.0,105570.0,0.1186799]
[1749437455028,1.74384682,105580.0,105570.0,0.1184799]
[1749437455214,1.74384682,105580.0,105570.0,0.1186799]
[1749437456125,1.38304682,105580.0,105570.0,0.1186799]
[1749437456425,2.10464682,105580.0,105570.0,0.1186799]
[1749437458830,1.38304682,105580.0,105570.0,0.1186799]
[1749437459033,2.10464682,105580.0,105570.0,0.1186799]
[1749437459530,1.38304682,105580.0,105570.0,0.1186799]
[1749437459733,2.10464682,105580.0,105570.0,0.1186799]
[1749437460333,2.10464682,105580.0,105570.0,0.13291848]
[1749437460632,2.10464682,105580.0,105570.0,0.1186799]
[1749437461126,2.14325216,105580.0,105570.0,0.0003416]
[1749437461324,2.14325216,105580.0,105570.0,0.01458056]
[1749437461524,2.14325216,105580.0,105570.0,0.01438056]
[1749437461823,2.14325216,105580.0,105570.0,0.01458056]
[1749437462732,2.14325216,105580.0,105570.0,0.0003416]
[1749437463031,2.14325216,105580.0,105570.0,0.01457342]
[1749437463936,2.14325216,105580.0,105570.0,0.01463208]
[1749437464436,2.14325216,105580.0,105570.0,0.0003416]
[1749437464731,2.14325216,105580.0,105570.0,0.01463208]
[1749437465426,2.14325216,105580.0,105570.0,0.0003416]
[1749437465625,2.14325216,105580.0,105570.0,0.01463792]
[1749437466029,2.14325216,105580.0,105570.0,0.0003416]
[1749437466328,2.14325216,105580.0,105570.0,0.01463714]
[1749437466630,2.14325216,105580.0,105570.0,0.01463715]
[1749437466824,2.14325216,105580.0,105570.0,0.0003416]
[1749437467026,2.14325216,105580.0,105570.0,0.01463711]
[1749437467722,2.14325216,105580.0,105570.0,0.0003416]
[1749437467919,2.14325216,105580.0,105570.0,0.0146364]
[1749437468427,2.14325216,105580.0,105570.0,0.0003416]
[1749437468632,2.14325216,105580.0,105570.0,0.0146364]
[1749437470135,2.14325216,105580.0,105570.0,0.0003416]
[1749437470341,2.14325216,105580.0,105570.0,0.014634]
[1749437470837,2.14325216,105580.0,105570.0,0.01443259]
[1749437471229,2.14325216,105580.0,105570.0,0.0003416]
[1749437471428,2.14325216,105580.0,105570.0,0.01463258]
[1749437471733,2.14325216,105580.0,105570.0,0.0003416]
[1749437471936,2.14325216,105580.0,105570.0,0.01463249]
[1749437472938,2.14325216,105580.0,105570.0,0.10329264]
[1749437473238,2.14325216,105580.0,105570.0,0.08900175]
[1749437473439,2.14325216,105580.0,105570.0,0.10329276]
[1749437474542,2.14325216,105580.0,105570.0,0.10329278]
[1749437475040,2.14325216,105580.0,105570.0,0.08900175]
[1749437475240,1.42165216,105580.0,105570.0,0.08900175]
[1749437475434,2.14325216,105580.0,105570.0,0.08900175]
[1749437475638,2.14325216,105580.0,105570.0,0.10329726]
[1749437476434,2.14325216,105580.0,105570.0,0.08900175]
[1749437476634,2.14325216,105580.0,105570.0,0.1032975]
[1749437477139,2.14325216,105580.0,105570.0,0.10329753]
[1749437478142,2.14325216,105580.0,105570.0,0.10330747]
[1749437478339,2.14325216,105580.0,105570.0,0.08900175]
[1749437478839,2.14325216,105580.0,105570.0,0.10330747]
[1749437479031,1.42165216,105580.0,105570.0,0.10331093]
[1749437479226,2.14325216,105580.0,105570.0,0.10331093]
[1749437479432,2.14325216,105580.0,105570.0,0.10331134]
[1749437479847,1.90830334,105580.0,105570.0,0.10331134]
[1749437480034,2.14325216,105580.0,105570.0,0.10331443]
[1749437480639,2.14325216,105580.0,105570.0,0.22165273]
[1749437480841,2.02577775,105580.0,105570.0,0.44420833]
[1749437481035,2.14325216,105580.0,105570.0,0.50470833]
[1749437481236,2.14325216,105580.0,105570.0,0.22669258]
[1749437481237,2.02577775,105580.0,105570.0,0.22669258]
[1749437481428,2.02577775,105580.0,105570.0,0.2123799]
[1749437482135,2.02577775,105580.0,105570.0,0.22669239]
[1749437482337,2.02577775,105580.0,105570.0,0.23074899]
[1749437482835,2.14325216,105580.0,105570.0,0.23075155]
[1749437483141,2.14325216,105580.0,105570.0,0.2164365]
[1749437483342,2.14325216,105580.0,105570.0,0.2123799]
[1749437483831,2.14325216,105580.0,105570.0,0.22669495]
[1749437484542,2.14325216,105580.0,105570.0,0.26457495]
[1749437484742,2.14325216,105580.0,105570.0,0.26456702]
[1749437484943,2.14325216,105580.0,105570.0,0.2502599]
[1749437485142,2.14325216,105580.0,105570.0,0.26456702]
[1749437485644,2.14325216,105580.0,105570.0,0.2502599]
[1749437485846,2.14325216,105580.0,105570.0,0.26456751]
[1749437486244,2.14325216,105580.0,105570.0,0.26456733]
[1749437486639,2.14325216,105580.0,105570.0,0.2502599]
[1749437486841,2.14325216,105580.0,105570.0,0.26456733]
[1749437487041,1.70941216,105580.0,105570.0,0.2502599]
[1749437487340,2.12645775,105580.0,105570.0,0.26457348]
[1749437488046,2.12645775,105580.0,105570.0,0.26457339]
[1749437488348,2.12645775,105580.0,105570.0,0.26457699]
[1749437488847,2.12645775,105580.0,105570.0,0.2502599]
[1749437489042,2.12645775,105580.0,105570.0,0.26457699]
[1749437489744,2.12645775,105580.0,105570.0,0.2502599]
[1749437490140,2.12645775,105580.0,105570.0,0.26457446]
[1749437490743,2.12645775,105580.0,105570.0,0.2502599]
[1749437491139,2.12645775,105580.0,105570.0,0.26457446]
[1749437491642,2.12645775,105580.0,105570.0,0.2502599]
[1749437491843,2.12645775,105580.0,105570.0,0.2645744]
[1749437492036,2.12645775,105580.0,105570.0,0.2502599]
[1749437492341,2.24393216,105580.0,105570.0,0.2645744]
[1749437493452,2.24393216,105580.0,105570.0,0.20407429]
[1749437493639,2.24393216,105580.0,105570.0,0.1897599]
[1749437493942,2.24393216,105580.0,105570.0,0.20407429]
[1749437494144,2.24393216,105580.0,105570.0,0.1897599]
[1749437494345,2.24393216,105580.0,105570.0,0.20407429]
[1749437495345,2.24393216,105580.0,105570.0,0.1897599]
[1749437495839,1.59193775,105580.0,105570.0,0.20408491]
[1749437496043,2.12641775,105580.0,105570.0,0.26948491]
[1749437496241,2.24389216,105580.0,105570.0,0.2551599]
[1749437496637,2.24389216,105580.0,105570.0,0.26948491]
[1749437497048,2.24389216,105580.0,105570.0,0.2551599]
[1749437497449,2.24389216,105580.0,105570.0,0.2694849]
[1749437498546,2.24389216,105580.0,105570.0,0.2592165]
[1749437499454,1.91754334,105580.0,105570.0,0.4485721]
[1749437499654,2.03501775,105580.0,105570.0,0.4485721]
[1749437501550,2.03501775,105580.0,105570.0,0.1897599]
[1749437501551,2.15249216,105580.0,105570.0,0.1897599]
[1749437501751,2.24579216,105580.0,105570.0,0.1897599]
[1749437502253,2.24579216,105580.0,105570.0,0.3791155]
[1749437502552,2.24579216,105580.0,105570.0,0.1897599]
[1749437502752,2.24579216,105580.0,105570.0,0.2210599]
[1749437503753,2.12831775,105580.0,105570.0,0.2210599]
[1749437504855,2.24579216,105580.0,105570.0,0.2210599]
[1749437505051,2.12831775,105580.0,105570.0,0.2210599]
[1749437505753,2.24579216,105580.0,105570.0,0.2210599]
[1749437506051,2.24579216,105580.0,105570.0,0.2494799]
[1749437507752,2.12831775,105580.0,105570.0,0.2494799]
[1749437508756,2.24579216,105580.0,105570.0,0.2494799]
[1749437509753,2.24579216,105580.0,105570.0,0.4388355]
[1749437509952,2.24579216,105580.0,105570.0,0.2494799]
[1749437510561,1.52419216,105580.0,105570.0,0.2494799]
[1749437510761,1.88499216,105580.0,105570.0,0.2494799]
[1749437512755,1.76751775,105580.0,105570.0,0.2494799]
[1749437513262,1.76751775,105580.0,105570.0,0.4388354]
[1749437513460,1.67421775,105580.0,105570.0,0.4388354]
[1749437513660,1.67421775,105580.0,105570.0,0.4708354]
[1749437514364,1.67313231,105580.0,105570.0,0.4708354]
[1749437514556,1.67305231,105580.0,105570.0,0.4708354]
[1749437514764,1.23945231,105580.0,105570.0,0.59236641]
[1749437514962,1.10113241,105580.0,105570.0,0.62164932]
[1749437515160,1.63545241,105580.0,105570.0,0.62164932]
[1749437516980,1.27465241,105580.0,105570.0,0.62164932]
[1749437517268,1.63545241,105580.0,105570.0,0.62164932]
[1749437519168,1.63545241,105580.0,105570.0,0.73991082]
[1749437519470,1.63545241,105580.0,105570.0,0.62164932]
[1749437520670,1.63545241,105580.0,105570.0,0.73989892]
[1749437520876,1.63545241,105580.0,105570.0,0.62164932]
[1749437521674,1.63545241,105580.0,105570.0,0.73988845]
[1749437522171,1.63545241,105580.0,105570.0,0.59226724]
[1749437522475,1.63545241,105580.0,105570.0,0.47479283]
[1749437522675,1.63545241,105580.0,105570.0,0.73988845]
[1749437524373,1.63545241,105580.0,105570.0,0.62241404]
[1749437524780,1.27465241,105580.0,105570.0,0.62241404]
[1749437524969,1.63545241,105580.0,105570.0,0.62241404]
[1749437525575,1.63545241,105580.0,105570.0,0.47479283]
[1749437529277,1.63545241,105580.0,105570.0,0.62241404]
[1749437531982,1.63545241,105580.0,105570.0,0.60417491]
[1749437533182,1.517978,105580.0,105570.0,0.60417491]
[1749437533382,1.63545241,105580.0,105570.0,0.60417491]
[1749437534181,1.63545241,105580.0,105570.0,0.72232866]
[1749437534382,1.63545241,105580.0,105570.0,0.57470745]
[1749437535384,1.63545241,105580.0,105570.0,0.72232866]
[1749437536386,1.63545241,105580.0,105570.0,0.57470745]
[1749437538787,1.63545241,105580.0,105570.0,0.60417491]
[1749437539086,1.20593241,105580.0,105570.0,0.60417491]
[1749437540487,0.004,105580.0,105570.0,1.17716871]
[1749437540691,0.53808,105580.0,105570.0,1.23634085]
[1749437541194,0.10472,105580.0,105570.0,1.23634085]
[1749437542280,0.10472,105580.0,105570.0,1.53324085]
[1749437545592,0.004,105580.0,105570.0,1.53324085]
[1749437545793,0.10472,105580.0,105570.0,1.53324085]
[1749437545992,0.004,105580.0,105570.0,1.65071526]
[1749437546292,0.004,105580.0,105570.0,2.08403526]
[1749437546695,0.004,105580.0,105570.0,2.17875526]
[1749437546992,0.004,105580.0,105570.0,1.97196191]
[1749437547182,0.004,105580.0,105570.0,2.17875526]
[1749437547984,0.004,105580.0,105570.0,1.97196191]
[1749437549091,0.004,105580.0,105570.0,2.33276191]
[1749437550695,0.004,105580.0,105570.0,2.48015232]
[1749437551395,0.004,105580.0,105570.0,2.53955526]
[1749437552501,0.004,105580.0,105570.0,2.48012357]
[1749437554100,0.004,105580.0,105570.0,2.58012357]
[1749437556698,0.004,105580.0,105570.0,2.48540357]
[1749437559000,0.004,105580.0,105570.0,2.33804191]
[1749437562106,0.004,105580.0,105570.0,1.61644191]
[1749437562405,0.004,105580.0,105570.0,2.33804191]
[1749437563609,0.004,105580.0,105570.0,2.10309309]
[1749437563806,0.004,105580.0,105570.0,2.33804191]
[1749437564309,0.004,105580.0,105570.0,2.2205675]
[1749437564906,0.004,105580.0,105570.0,2.33804191]
[1749437565705,0.004,105580.0,105570.0,2.54483526]
[1749437567307,0.004,105580.0,105570.0,2.44483526]
[1749437567805,0.004,105580.0,105570.0,2.23804191]
[1749437568307,0.004,105580.0,105570.0,2.1205675]
[1749437568707,0.004,105580.0,105570.0,2.1204075]
[1749437568905,0.004,105580.0,105570.0,2.41597656]
[1749437569704,0.004,105580.0,105570.0,2.1204075]
[1749437570404,0.004,105580.0,105570.0,2.41597656]
[1749437573711,0.004,105580.0,105570.0,1.69437656]
[1749437574012,0.004,105580.0,105570.0,2.41597656]
[1749437574708,0.00019857,105580.0,105570.0,2.41597656]
[1749437581414,0.00019857,105580.0,105570.0,2.1204075]
[1749437581613,0.00019857,105580.0,105570.0,1.3988075]
[1749437581817,0.00019857,105580.0,105570.0,2.1204075]
[1749437582217,0.00019857,105580.0,105570.0,1.3988075]
[1749437582517,0.00019857,105580.0,105570.0,2.1204075]
[1749437584717,9.84e-06,105580.0,105570.0,2.1163509]
[1749437585019,9.84e-06,105580.0,105570.0,2.50059068]
[1749437585717,9.84e-06,105580.0,105570.0,2.50464728]
[1749437588118,9.84e-06,105580.0,105570.0,1.78304728]
[1749437588322,9.84e-06,105580.0,105570.0,2.50464728]
[1749437588720,9.84e-06,105580.0,105570.0,2.62212169]
[1749437589419,9.84e-06,105580.0,105570.0,2.23788191]
[1749437590118,9.84e-06,105580.0,105570.0,2.53344973]
[1749437595723,9.84e-06,105580.0,105570.0,1.81184973]
[1749437595924,9.84e-06,105580.0,105570.0,2.53344973]
[1749437598426,0.19812,105590.0,105580.0,0.1893381]
[1749437598620,0.19812,105590.0,105580.0,0.94758692]
[1749437599027,0.19812,105590.0,105580.0,1.33787413]
[1749437599327,0.1007816,105600.0,105590.0,0.1893202]
[1749437599522,0.1637816,105600.0,105590.0,1.27131668]
[1749437599827,0.1961816,105600.0,105590.0,1.27131668]
[1749437600017,0.1961816,105600.0,105590.0,1.3660271]
[1749437600018,0.20604385,105600.0,105590.0,1.3660271]
[1749437600217,0.20604385,105600.0,105590.0,1.15920503]
[1749437600527,0.20904385,105600.0,105590.0,1.15920503]
[1749437600726,0.20904385,105600.0,105590.0,1.36599016]
[1749437600727,0.21004385,105600.0,105590.0,1.36599016]
[1749437601121,0.10940385,105600.0,105590.0,1.36599016]
[1749437601321,0.20996385,105600.0,105590.0,1.36599016]
[1749437601521,0.20996385,105600.0,105590.0,1.39669016]
[1749437602025,0.2001016,105600.0,105590.0,1.43457016]
[1749437602725,0.2001016,105600.0,105590.0,1.46299016]
[1749437603227,0.3894039,105600.0,105590.0,1.46299016]
[1749437603925,0.3894039,105600.0,105590.0,1.10219016]
[1749437604121,0.20980226,105600.0,105590.0,1.46299016]
[1749437604528,0.39910456,105600.0,105590.0,1.46299016]
[1749437604930,0.20980226,105600.0,105590.0,1.46299016]
[1749437605226,0.39910456,105600.0,105590.0,1.46299016]
[1749437605930,0.2001016,105600.0,105590.0,1.46299016]
[1749437606118,0.3894039,105600.0,105590.0,1.40389747]
[1749437606427,0.2001016,105600.0,105590.0,1.40389747]
[1749437608528,0.2098046,105600.0,105590.0,1.40389747]
[1749437610234,0.2001016,105600.0,105590.0,1.40389747]
[1749437610432,0.2001016,105600.0,105590.0,1.43439747]
[1749437613035,0.2001016,105600.0,105590.0,1.28670503]
[1749437613233,0.20957825,105600.0,105590.0,1.28670503]
[1749437615236,0.20957825,105600.0,105590.0,1.29076163]
[1749437616350,0.20957825,105600.0,105590.0,1.49752883]
[1749437617346,0.20957825,105600.0,105590.0,1.29076163]
[1749437618048,0.0041416,105600.0,105590.0,1.29076163]
[1749437618249,0.1047016,105600.0,105590.0,1.53053209]
[1749437619145,0.1049016,105600.0,105590.0,1.53053209]
[1749437619647,0.1049016,105600.0,105590.0,1.32376163]
[1749437620536,0.1047016,105600.0,105590.0,1.32376163]
[1749437620739,0.1049016,105600.0,105590.0,1.32376163]
[1749437620946,0.11469106,105600.0,105590.0,1.32376163]
[1749437621247,0.11469106,105600.0,105590.0,1.31970503]
[1749437625344,0.01413106,105600.0,105590.0,1.31970503]
[1749437626447,0.01213106,105600.0,105590.0,1.31970503]
[1749437628048,0.01213106,105600.0,105590.0,1.68050503]
[1749437629254,0.0023416,105600.0,105590.0,1.88730071]
[1749437630147,0.0023416,105600.0,105590.0,1.16570071]
[1749437630346,0.0023416,105600.0,105590.0,1.88730071]
[1749437631854,0.0023416,105600.0,105590.0,1.52650071]
[1749437633454,0.0023416,105600.0,105590.0,1.16570071]
[1749437633658,0.01187139,105600.0,105590.0,1.52650071]
[1749437634157,0.01187139,105600.0,105590.0,1.31970503]
[1749437636760,0.01187139,105600.0,105590.0,0.95890503]
[1749437636962,0.01187139,105600.0,105590.0,1.31970503]
[1749437640162,0.0023416,105600.0,105590.0,1.31970503]
[1749437641258,0.0023416,105600.0,105590.0,1.5264936]
[1749437644562,0.0023416,105600.0,105590.0,1.5305502]
[1749437644760,0.0023416,105600.0,105590.0,1.9633102]
[1749437644965,0.10048,105610.0,105600.0,0.1893023]
[1749437645259,0.10048,105610.0,105600.0,1.18960997]
[1749437645663,0.10068,105610.0,105600.0,1.28431142]
[1749437646264,0.10068,105610.0,105600.0,1.0493626]
[1749437646459,0.1102146,105610.0,105600.0,1.28431142]
[1749437647259,0.1112146,105610.0,105600.0,1.28431142]
[1749437647666,0.1112146,105610.0,105600.0,1.32218142]
[1749437648266,0.1112146,105610.0,105600.0,1.11542257]
[1749437648863,0.1112146,105610.0,105600.0,1.41232257]
[1749437649064,0.1112146,105610.0,105600.0,1.64750142]
[1749437649263,0.1112146,105610.0,105600.0,1.44074257]
[1749437650768,0.10168,105610.0,105600.0,1.44074257]
[1749437651270,0.10168,105610.0,105600.0,1.64734459]
[1749437651871,0.11116882,105610.0,105600.0,1.64734459]
[1749437652664,0.10168,105610.0,105600.0,1.64734459]
[1749437653269,0.10168,105610.0,105600.0,1.44074257]
[1749437656173,0.10168,105610.0,105600.0,1.5882456]
[1749437656774,0.11115437,105610.0,105600.0,1.5882456]
[1749437657671,0.11115437,105610.0,105600.0,1.64734459]
[1749437658574,0.10168,105610.0,105600.0,1.64734459]
[1749437670476,0.10168,105610.0,105600.0,1.53036792]
[1749437670477,0.2909643,105610.0,105600.0,1.53036792]
[1749437670679,0.40843871,105610.0,105600.0,1.58184233]
[1749437670879,0.3872643,105610.0,105600.0,1.37524031]
[1749437671269,0.19798,105610.0,105600.0,1.40754031]
[1749437671579,0.3872643,105610.0,105600.0,1.40754031]
[1749437671780,0.3872643,105610.0,105600.0,1.43924031]
[1749437672984,0.19798,105610.0,105600.0,1.43924031]
[1749437673977,0.16588,105610.0,105600.0,1.43924031]
[1749437674376,0.20327383,105610.0,105600.0,1.43924031]
[1749437674682,0.20319383,105610.0,105600.0,1.43924031]
[1749437675185,0.20725043,105610.0,105600.0,1.43924031]
[1749437675485,0.10685043,105610.0,105600.0,1.43924031]
[1749437675684,0.17475043,105610.0,105600.0,1.43924031]
[1749437676184,0.17069383,105610.0,105600.0,1.43924031]
[1749437676583,0.13899383,105610.0,105600.0,1.43924031]
[1749437678890,0.1016,105610.0,105600.0,1.52787018]
[1749437680588,0.1016,105610.0,105600.0,1.32126816]
[1749437680784,0.1016,105610.0,105600.0,1.52803845]
[1749437681187,0.1016,105610.0,105600.0,1.52804431]
[1749437681789,0.1016,105610.0,105600.0,1.32126816]
[1749437686196,0.1016,105610.0,105600.0,1.5280429]
[1749437687095,0.1016,105610.0,105600.0,1.32126816]
[1749437687296,0.1016,105610.0,105600.0,1.52804137]
[1749437688186,0.1016,105610.0,105600.0,1.52804244]
[1749437689397,0.1016,105610.0,105600.0,1.32126816]
[1749437691204,0.1016,105610.0,105600.0,1.52811026]
[1749437691799,0.1016,105610.0,105600.0,1.16731026]
[1749437691996,0.1016,105610.0,105600.0,1.52811026]
[1749437695509,0.2908843,105610.0,105600.0,1.52811026]
[1749437695709,0.3513843,105610.0,105600.0,1.52811026]
[1749437697005,0.3513843,105610.0,105600.0,1.32126816]
[1749437698910,0.3513843,105610.0,105600.0,1.16731713]
[1749437699210,0.3513843,105610.0,105600.0,1.52811713]
[1749437702510,0.3513843,105610.0,105600.0,1.41064272]
[1749437702711,0.3513843,105610.0,105600.0,1.52811713]
[1749437703321,0.46885871,105610.0,105600.0,1.52811713]
[1749437703615,0.46885871,105610.0,105600.0,1.36411713]
[1749437703807,0.86235871,105610.0,105600.0,1.00331713]
[1749437704004,0.86235871,105610.0,105600.0,0.97151713]
[1749437707912,0.86235871,105610.0,105600.0,0.67461713]
[1749437708713,0.7448843,105610.0,105600.0,0.67461713]
[1749437708916,0.7448843,105610.0,105600.0,0.70591713]
[1749437710511,0.7448843,105610.0,105600.0,0.73831713]
[1749437710816,0.7448843,105610.0,105600.0,0.83831713]
[1749437711516,0.3840843,105610.0,105600.0,0.83831713]
[1749437711711,0.3840843,105610.0,105600.0,0.87121713]
[1749437711906,0.3840843,105610.0,105600.0,0.98869154]
[1749437712211,0.1016,105610.0,105600.0,0.98869154]
[1749437712412,0.5338,105610.0,105600.0,1.34949154]
[1749437712715,0.534,105610.0,105600.0,1.49722002]
[1749437712916,0.534,105610.0,105600.0,1.29037105]
[1749437713823,0.534,105610.0,105600.0,1.58727105]
[1749437714217,0.534,105610.0,105600.0,1.46979664]
[1749437714410,0.7232841,105610.0,105600.0,1.46979664]
[1749437714606,0.534,105610.0,105600.0,1.46979664]
[1749437714811,0.7232841,105610.0,105600.0,1.46979664]
[1749437715006,0.7231641,105610.0,105600.0,1.46979664]
[1749437717418,0.7231641,105610.0,105600.0,1.32206816]
[1749437717924,0.53388,105610.0,105600.0,1.32206816]
[1749437718123,0.7231641,105610.0,105600.0,1.32206816]
[1749437718311,0.7231641,105610.0,105600.0,1.43954257]
[1749437719422,0.53388,105610.0,105600.0,1.43954257]
[1749437719620,0.53388,105610.0,105600.0,1.64639154]
[1749437725836,0.53388,105610.0,105600.0,1.34949154]
[1749437727741,0.53384,105610.0,105600.0,1.34949154]
[1749437728038,0.53364,105610.0,105600.0,1.34949154]
[1749437728336,0.53384,105610.0,105600.0,1.34949154]
[1749437729434,0.53384,105610.0,105600.0,1.14264257]
[1749437729932,0.53364,105610.0,105600.0,1.14264257]
[1749437730129,0.53376,105610.0,105600.0,1.43814111]
[1749437730327,0.53356,105610.0,105600.0,1.43814111]
[1749437730732,0.53376,105610.0,105600.0,1.14264257]
[1749437732732,0.0012,105610.0,105600.0,1.26011698]
[1749437732938,0.5326616,105620.0,105610.0,0.1892841]
[1749437733138,0.5326616,105620.0,105610.0,0.61683292]
[1749437733540,0.5326616,105620.0,105610.0,1.07231644]
[1749437733738,0.5328616,105620.0,105610.0,1.07231644]
[1749437733938,0.1003816,105620.0,105610.0,1.07231644]
[1749437734138,0.1005816,105620.0,105610.0,1.07231644]
[1749437735236,0.1015816,105620.0,105610.0,1.07231644]
[1749437735838,0.0013416,105620.0,105610.0,1.27887236]
[1749437736341,0.0013416,105620.0,105610.0,1.16139795]
[1749437736537,0.0013416,105620.0,105610.0,1.22768795]
[1749437738836,0.0013416,105620.0,105610.0,1.34516236]
[1749437739544,0.0011416,105620.0,105610.0,1.13860644]
[1749437739736,0.0013416,105620.0,105610.0,1.13860644]
[1749437739935,0.0011416,105620.0,105610.0,1.43410498]
[1749437740136,0.0013416,105620.0,105610.0,1.43410498]
[1749437741343,0.0013416,105620.0,105610.0,1.31663057]
[1749437744441,0.0013416,105620.0,105610.0,1.43410498]
[1749437744742,0.0013416,105620.0,105610.0,1.31663057]
[1749437746644,0.0013416,105620.0,105610.0,1.52286512]
[1749437746942,0.0013416,105620.0,105610.0,1.22736658]
[1749437747444,0.0013416,105620.0,105610.0,1.02113203]
[1749437747745,0.0013416,105620.0,105610.0,1.22736033]
[1749437748945,0.0013416,105620.0,105610.0,1.58816033]
[1749437749148,0.0053982,105620.0,105610.0,1.58816033]
[1749437749649,0.0053982,105620.0,105610.0,1.38193203]
[1749437749943,0.0053982,105620.0,105610.0,1.81409203]
[1749437751346,0.0053982,105620.0,105610.0,2.02032021]
[1749437752543,0.0053982,105620.0,105610.0,1.58816021]
[1749437752846,0.0053982,105620.0,105610.0,2.02032021]
[1749437753041,0.0053982,105620.0,105610.0,1.58816021]
[1749437753442,0.0375982,105620.0,105610.0,1.58816021]
[1749437753845,0.0690982,105620.0,105610.0,1.58816021]
[1749437754846,0.1007982,105620.0,105610.0,1.58816021]
[1749437758153,0.1007982,105620.0,105610.0,1.52556021]
[1749437760545,0.1007982,105620.0,105610.0,1.16476021]
[1749437760744,0.1007982,105620.0,105610.0,0.95853203]
[1749437761443,0.1007982,105620.0,105610.0,1.19534298]
[1749437761844,0.1007982,105620.0,105610.0,1.19539178]
[1749437762550,0.1007982,105620.0,105610.0,0.98883203]
[1749437763552,0.1007982,105620.0,105610.0,0.62803203]
[1749437763750,0.1007982,105620.0,105610.0,0.98883203]
[1749437765660,0.1007982,105620.0,105610.0,1.28433057]
[1749437766249,0.1007982,105620.0,105610.0,0.98883203]
[1749437768252,0.1007982,105620.0,105610.0,0.87135762]
[1749437768457,0.1007982,105620.0,105610.0,0.98883203]
[1749437769052,0.1007982,105620.0,105610.0,0.87135762]
[1749437769257,0.1007982,105620.0,105610.0,0.95853203]
[1749437769557,0.1007982,105620.0,105610.0,0.92853203]
[1749437769857,0.1007982,105620.0,105610.0,1.13524305]
[1749437770357,0.2009582,105620.0,105610.0,1.13524305]
[1749437772458,0.2009582,105620.0,105610.0,0.77444305]
[1749437772661,0.2009582,105620.0,105610.0,1.13524305]
[1749437773860,0.2009582,105620.0,105610.0,0.92853203]
[1749437774052,0.2009582,105620.0,105610.0,1.22403057]
[1749437774661,0.2009582,105620.0,105610.0,1.25583057]
[1749437774861,0.2009582,105620.0,105610.0,0.89503057]
[1749437775062,0.2009582,105620.0,105610.0,1.25583057]
[1749437775762,0.2009582,105620.0,105610.0,0.89503057]
[1749437775962,0.2009582,105620.0,105610.0,1.25583057]
[1749437776162,0.2009582,105620.0,105610.0,1.28783057]
[1749437776460,0.2009582,105620.0,105610.0,0.99233203]
[1749437776663,0.2009582,105620.0,105610.0,0.63153203]
[1749437776962,0.2009582,105620.0,105610.0,0.99233203]
[1749437779062,0.2009582,105620.0,105610.0,1.02453203]
[1749437779761,0.1694582,105620.0,105610.0,1.02453203]
[1749437780063,0.1055582,105620.0,105610.0,1.02453203]
[1749437782063,0.2948247,105620.0,105610.0,0.90705762]
[1749437782268,0.41229911,105620.0,105610.0,0.77448531]
[1749437782454,0.50519911,105620.0,105610.0,0.56773203]
[1749437782769,0.50519911,105620.0,105610.0,0.65701842]
[1749437783068,0.50519911,105620.0,105610.0,0.56773203]
[1749437783566,0.50519911,105620.0,105610.0,0.77450171]
[1749437783958,0.86599911,105620.0,105610.0,0.77450171]
[1749437789468,0.50519911,105620.0,105610.0,0.77450171]
[1749437789670,0.86599911,105620.0,105610.0,0.77450171]
[1749437791372,0.50519911,105620.0,105610.0,0.77450171]
[1749437791669,0.86599911,105620.0,105610.0,0.77450171]
[1749437792468,0.86599911,105620.0,105610.0,0.56773203]
[1749437793171,0.86599911,105620.0,105610.0,0.71542593]
[1749437794271,0.86599911,105620.0,105610.0,0.77450171]
[1749437794771,0.86599911,105620.0,105610.0,0.92219965]
[1749437795170,0.86599911,105620.0,105610.0,0.71542997]
[1749437797673,0.86599911,105620.0,105610.0,0.56773203]
[1749437799272,0.86599911,105620.0,105610.0,0.77450171]
[1749437800664,0.50519911,105620.0,105610.0,0.77450171]
[1749437800867,0.86599911,105620.0,105610.0,0.77450171]
[1749437801163,0.7485247,105620.0,105610.0,0.77450171]
[1749437801363,0.86599911,105620.0,105610.0,0.77450171]
[1749437801573,0.86599911,105620.0,105610.0,0.67450171]
[1749437801876,0.86599911,105620.0,105610.0,0.57981819]
[1749437802271,0.86599911,105620.0,105610.0,0.72753009]
[1749437802473,0.86599911,105620.0,105610.0,0.52076041]
[1749437812279,0.86599911,105620.0,105610.0,0.403286]
[1749437812679,0.50519911,105620.0,105610.0,0.403286]
[1749437812873,0.86599911,105620.0,105610.0,0.403286]
[1749437813272,0.50519911,105620.0,105610.0,0.403286]
[1749437813477,0.86599911,105620.0,105610.0,0.403286]
[1749437813680,0.98347352,105620.0,105610.0,0.403286]
[1749437815983,0.98347352,105620.0,105610.0,0.61005568]
[1749437818300,0.86599911,105620.0,105610.0,0.72753009]
[1749437819096,0.7485247,105620.0,105610.0,0.72753009]
[1749437819303,0.86599911,105620.0,105610.0,0.72753009]
[1749437820201,0.98347352,105620.0,105610.0,0.61005568]
[1749437820697,0.62267352,105620.0,105610.0,0.61005568]
[1749437820901,0.98347352,105620.0,105610.0,0.61005568]
[1749437821304,0.98347352,105620.0,105610.0,0.403286]
[1749437826201,0.98347352,105620.0,105610.0,0.52148817]
[1749437826506,0.98347352,105620.0,105610.0,0.403286]
[1749437827295,0.98347352,105620.0,105610.0,0.52148014]
[1749437827805,0.98347352,105620.0,105610.0,0.53573189]
[1749437828104,0.62267352,105620.0,105610.0,0.5357318]
[1749437828303,0.98347352,105620.0,105610.0,0.5357318]
[1749437828499,0.98347352,105620.0,105610.0,0.52148014]
[1749437828696,0.98347352,105620.0,105610.0,0.5357318]
[1749437829092,0.98347352,105620.0,105610.0,0.53573493]
[1749437829704,0.98347352,105620.0,105610.0,0.5357352]
[1749437829898,0.98347352,105620.0,105610.0,0.53574957]
[1749437830404,0.98347352,105620.0,105610.0,0.52148014]
[1749437830806,0.98347352,105620.0,105610.0,0.5357483]
[1749437831304,0.98347352,105620.0,105610.0,0.3880364]
[1749437832105,0.98347352,105620.0,105610.0,0.37376824]
[1749437832710,0.98347352,105620.0,105610.0,0.3880419]
[1749437833509,0.98347352,105620.0,105610.0,0.37376824]